bitfinex-derivatives/quotes_BTCF0:USTF0_20241128
["timestamp","ask_amount","ask_price","bid_price","bid_amount"]
[1732792812707,0.052679,94881.0,94867.0,0.0319]
[1732792812918,0.1886,94888.0,94875.0,0.3608]
[1732792813102,0.1886,94891.0,94880.0,0.052679]
[1732792813420,0.052675,94887.0,94881.0,0.052679]
[1732792814115,0.1886,94891.0,94881.0,0.052679]
[1732792814309,0.001,94881.0,94880.0,0.052679]
[1732792814701,0.1886,94891.0,94875.0,0.3608]
[1732792814907,0.37336326,94896.0,94875.0,0.3608]
[1732792814908,0.001,94887.0,94885.0,0.052676]
[1732792815210,0.001,94887.0,94886.0,0.0323]
[1732792815413,0.052674,94889.0,94888.0,0.052674]
[1732792815806,0.052674,94889.0,94887.0,0.033]
[1732792816002,0.052674,94889.0,94887.0,0.085675]
[1732792816517,0.052674,94889.0,94887.0,0.033]
[1732792817017,0.053676,94887.0,94885.0,0.002]
[1732792817408,0.0316,94886.0,94885.0,0.002]
[1732792817610,0.03173306,94886.0,94885.0,0.002]
[1732792817915,0.37829306,94886.0,94885.0,0.002]
[1732792818306,0.37829306,94886.0,94873.0,0.3608]
[1732792818512,0.052683,94874.0,94873.0,0.3608]
[1732792819813,0.052687,94866.0,94865.0,0.0638]
[1732792820022,0.052687,94866.0,94865.0,0.0308]
[1732792820215,0.052683,94873.0,94870.0,0.052685]
[1732792820412,0.052685,94869.0,94864.0,0.36136]
[1732792820632,0.052688,94865.0,94864.0,0.00056]
[1732792821122,0.05269,94861.0,94858.0,0.3608]
[1732792821416,0.18868,94866.0,94858.0,0.3608]
[1732792821417,0.18968,94866.0,94858.0,0.3608]
[1732792821605,0.05269,94860.0,94858.0,0.413491]
[1732792821918,0.001,94866.0,94864.0,0.052688]
[1732792822120,0.001,94866.0,94865.0,0.0311]
[1732792822327,0.001,94866.0,94865.0,0.0631]
[1732792822915,0.001,94866.0,94865.0,0.115788]
[1732792823312,0.053687,94866.0,94865.0,0.115788]
[1732792824115,0.052687,94866.0,94865.0,0.115788]
[1732792824319,0.052687,94866.0,94865.0,0.0311]
[1732792824622,0.052691,94859.0,94858.0,0.3628]
[1732792824814,0.002,94866.0,94865.0,0.002]
[1732792825324,0.054687,94866.0,94865.0,0.002]
[1732792825519,0.250247,94866.0,94865.0,0.002]
[1732792825717,0.249247,94866.0,94865.0,0.002]
[1732792826018,0.052694,94853.0,94851.0,0.18924564]
[1732792826206,0.002,94859.0,94850.0,0.3608]
[1732792826207,0.052695,94851.0,94850.0,0.3608]
[1732792826414,0.052695,94851.0,94850.0,0.54916961]
[1732792826609,0.052695,94851.0,94850.0,0.3608]
[1732792828128,0.053695,94851.0,94850.0,0.3608]
[1732792828310,0.053695,94851.0,94850.0,0.413496]
[1732792828724,0.054695,94851.0,94850.0,0.415496]
[1732792829531,0.002,94851.0,94850.0,0.415496]
[1732792829732,0.031,94879.0,94870.0,0.052683]
[1732792829916,0.44272,94880.0,94870.0,0.052683]
[1732792829917,0.052685,94871.0,94870.0,0.052683]
[1732792831425,0.41348,94878.0,94874.0,0.052683]
[1732792831622,0.3918,94889.0,94874.0,0.052683]
[1732792831623,0.1956,94888.0,94874.0,0.052683]
[1732792831827,0.3608,94889.0,94874.0,0.052683]
[1732792832128,0.05426379,94875.0,94874.0,0.052683]
[1732792832325,0.00158179,94875.0,94867.0,0.54919966]
[1732792832533,0.052686,94868.0,94867.0,0.3608]
[1732792832823,0.05269,94862.0,94861.0,0.052689]
[1732792834321,0.05269,94862.0,94861.0,0.053689]
[1732792835027,0.05269,94862.0,94861.0,0.054689]
[1732792836431,0.05269,94862.0,94861.0,0.30625492]
[1732792836633,0.05269,94862.0,94861.0,0.054689]
[1732792837128,0.05269,94862.0,94861.0,0.3064072]
[1732792837530,0.05269,94862.0,94861.0,0.054689]
[1732792838223,0.1956,94874.0,94861.0,0.002]
[1732792838423,0.1956,94874.0,94872.0,0.052683]
[1732792838424,0.052683,94873.0,94872.0,0.052683]
[1732792838820,0.052683,94873.0,94872.0,0.24156439]
[1732792839326,0.052683,94873.0,94872.0,0.052683]
[1732792841029,0.00158179,94875.0,94874.0,0.052683]
[1732792841229,0.00158179,94875.0,94874.0,0.30452485]
[1732792841427,0.00158179,94875.0,94868.0,0.3608]
[1732792841620,0.00158179,94875.0,94866.0,0.31454063]
[1732792841820,0.3608,94871.0,94869.0,0.25235406]
[1732792842021,0.3608,94871.0,94868.0,0.18927519]
[1732792842022,0.2266,94870.0,94868.0,0.18927519]
[1732792842232,0.052686,94868.0,94867.0,0.18927519]
[1732792842533,0.052686,94868.0,94858.0,0.67534063]
[1732792842534,0.052687,94866.0,94864.0,0.25235406]
[1732792842827,0.085488,94865.0,94864.0,0.25235406]
[1732792843335,0.085488,94865.0,94858.0,0.67594063]
[1732792843336,0.052689,94863.0,94862.0,0.25235406]
[1732792843627,0.052691,94859.0,94858.0,0.3608]
[1732792844015,0.052691,94859.0,94858.0,0.36144]
[1732792844429,0.052691,94859.0,94858.0,0.3608]
[1732792845121,0.052691,94859.0,94858.0,0.3628]
[1732792845329,0.052691,94859.0,94858.0,0.3638]
[1732792849120,0.052691,94859.0,94858.0,0.003]
[1732792849323,0.729771,94859.0,94843.0,0.18933937]
[1732792849528,0.052701,94841.0,94840.0,0.18933937]
[1732792849728,0.052703,94837.0,94829.0,0.18933937]
[1732792849927,0.052703,94837.0,94828.0,0.18933937]
[1732792850427,0.052703,94837.0,94825.0,0.18933937]
[1732792850625,0.052709,94826.0,94825.0,0.18933937]
[1732792850824,0.001,94837.0,94830.0,0.052707]
[1732792851028,0.052706,94833.0,94830.0,0.052707]
[1732792851226,0.001,94837.0,94821.0,0.01253733]
[1732792851227,0.001,94837.0,94824.0,0.24204937]
[1732792851533,0.001,94837.0,94821.0,0.01253733]
[1732792851534,0.052708,94828.0,94821.0,0.18933937]
[1732792851736,0.052708,94828.0,94825.0,0.05271]
[1732792852234,0.002,94837.0,94821.0,0.18933937]
[1732792852443,0.052704,94836.0,94833.0,0.052705]
[1732792852626,0.052704,94835.0,94833.0,0.052705]
[1732792852822,0.002,94837.0,94833.0,0.052705]
[1732792853029,0.052705,94834.0,94833.0,0.052705]
[1732792853328,0.001,94837.0,94828.0,0.052708]
[1732792853531,0.052708,94829.0,94828.0,0.052708]
[1732792854724,0.052712,94822.0,94819.0,0.55013937]
[1732792854927,0.052704,94835.0,94820.0,0.20258065]
[1732792854928,0.052712,94821.0,94820.0,0.20258065]
[1732792855231,0.052712,94821.0,94820.0,0.05606539]
[1732792855426,0.052712,94821.0,94820.0,0.0527691]
[1732792855621,0.052712,94821.0,94820.0,5.61e-05]
[1732792855622,0.05284567,94821.0,94820.0,5.61e-05]
[1732792856626,0.05284567,94821.0,94820.0,0.0527691]
[1732792856627,0.00013367,94821.0,94820.0,0.0527691]
[1732792856936,0.05284567,94821.0,94820.0,0.0527691]
[1732792857727,0.05484567,94821.0,94820.0,0.0537691]
[1732792858024,0.00213367,94821.0,94820.0,0.0537691]
[1732792858530,0.00213367,94821.0,94820.0,0.0570654]
[1732792858939,0.80594242,94847.0,94820.0,0.0570654]
[1732792858940,0.00158242,94847.0,94846.0,0.052698]
[1732792859232,1e-08,94847.0,94846.0,0.052698]
[1732792859431,0.05269,94861.0,94860.0,0.05269]
[1732792859639,0.245765,94869.0,94868.0,0.052686]
[1732792860029,0.24587735,94869.0,94868.0,0.052686]
[1732792860426,0.00011235,94869.0,94868.0,0.052686]
[1732792861138,0.01211235,94869.0,94868.0,0.05598049]
[1732792862332,0.01211235,94869.0,94868.0,0.052686]
[1732792863338,0.00411235,94869.0,94868.0,0.052686]
[1732792863539,0.00411235,94869.0,94868.0,0.053686]
[1732792863540,0.00011235,94869.0,94868.0,0.053686]
[1732792863838,0.00011235,94869.0,94868.0,0.054686]
[1732792865039,0.00011235,94869.0,94868.0,0.05798065]
[1732792865231,0.00011235,94869.0,94868.0,0.054686]
[1732792865433,0.00011235,94869.0,94868.0,0.05798065]
[1732792866141,0.00011235,94869.0,94868.0,0.054686]
[1732792866640,0.0015814,94893.0,94868.0,0.61824]
[1732792866829,0.0015814,94893.0,94892.0,0.413473]
[1732792867028,0.0542534,94893.0,94892.0,0.3608]
[1732792867445,0.05433888,94893.0,94892.0,0.36087588]
[1732792868037,0.06333888,94893.0,94892.0,0.36187588]
[1732792868236,0.00908548,94893.0,94892.0,0.36187588]
[1732792869340,0.00908548,94893.0,94892.0,0.6813296]
[1732792869644,0.19304,94912.0,94892.0,0.6813296]
[1732792869838,0.19304,94912.0,94902.0,0.3608]
[1732792869839,0.052662,94912.0,94902.0,0.3608]
[1732792870436,0.00010728,94909.0,94902.0,0.413467]
[1732792870733,0.052666,94904.0,94902.0,0.3608]
[1732792871241,0.19314728,94909.0,94902.0,0.3618]
[1732792871445,0.00010728,94909.0,94907.0,0.052664]
[1732792873142,0.052664,94907.0,94902.0,0.3628]
[1732792873346,0.052666,94904.0,94902.0,0.3628]
[1732792873541,0.052666,94904.0,94902.0,0.3618]
[1732792873845,0.058666,94904.0,94902.0,0.3618]
[1732792874441,0.058666,94904.0,94902.0,0.3628]
[1732792874743,0.058666,94904.0,94902.0,0.415467]
[1732792875445,0.006,94904.0,94902.0,0.414467]
[1732792875645,0.007,94904.0,94902.0,0.415467]
[1732792876739,0.059666,94904.0,94902.0,0.415467]
[1732792878750,0.059666,94904.0,94902.0,0.3628]
[1732792879845,0.059666,94904.0,94902.0,0.415467]
[1732792880145,0.007,94904.0,94902.0,0.415467]
[1732792880840,0.00010728,94909.0,94908.0,0.052664]
[1732792881042,0.19226079,94931.0,94930.0,0.052651]
[1732792881337,0.00158079,94931.0,94930.0,0.052651]
[1732792882144,0.00258079,94931.0,94930.0,0.06494345]
[1732792882352,0.00258079,94931.0,94930.0,0.061651]
[1732792882544,0.052635,94960.0,94930.0,0.06494343]
[1732792882747,0.00060001,94956.0,94947.0,0.3608]
[1732792882953,0.19772,94957.0,94947.0,0.48883507]
[1732792883143,0.19772,94957.0,94955.0,0.052637]
[1732792883346,0.052637,94957.0,94955.0,0.052637]
[1732792883757,0.00010509,94956.0,94955.0,0.052637]
[1732792884251,0.00010509,94956.0,94955.0,0.41351648]
[1732792885142,0.00010509,94956.0,94955.0,0.41680806]
[1732792885352,0.01275826,94971.0,94970.0,0.052629]
[1732792885647,0.0314,94985.0,94970.0,0.052629]
[1732792885849,0.0314,94985.0,94969.0,0.3608]
[1732792886154,0.052626,94976.0,94970.0,0.3608]
[1732792886349,9.419e-05,94973.0,94971.0,0.052629]
[1732792886851,9.419e-05,94973.0,94972.0,0.00329101]
[1732792887944,0.00309419,94973.0,94972.0,0.00329101]
[1732792888144,9.419e-05,94973.0,94972.0,0.00329101]
[1732792888350,0.00309419,94973.0,94972.0,0.00329101]
[1732792889546,0.00309419,94973.0,94972.0,0.00855649]
[1732792890650,0.084515,94996.0,94994.0,0.052616]
[1732792890651,0.052615,94996.0,94994.0,0.052616]
[1732792890849,0.1,95000.0,94996.0,0.052615]
[1732792891249,0.1,95000.0,94993.0,0.3608]
[1732792891553,0.00013333,94999.0,94993.0,0.3608]
[1732792892157,0.052616,94995.0,94993.0,0.3608]
[1732792892356,0.00658012,94997.0,94993.0,0.3608]
[1732792892556,0.00658012,94997.0,94995.0,0.052615]
[1732792892760,0.05919512,94997.0,94995.0,0.052615]
[1732792893256,0.05919512,94997.0,94993.0,0.3608]
[1732792893257,0.052616,94995.0,94993.0,0.3608]
[1732792893649,0.00658012,94997.0,94993.0,0.3608]
[1732792893850,0.00158012,94997.0,94994.0,0.052616]
[1732792894058,0.00558012,94997.0,94995.0,0.001]
[1732792894659,0.00558012,94997.0,94994.0,0.052616]
[1732792895052,0.00658012,94997.0,94996.0,0.052615]
[1732792895566,0.00658012,94997.0,94996.0,0.06116937]
[1732792895748,0.00013333,94999.0,94998.0,0.052614]
[1732792895961,0.00013333,94999.0,94998.0,0.06116837]
[1732792896959,0.00013333,94999.0,94998.0,0.0184244]
[1732792897160,0.00013333,94999.0,94997.0,0.052614]
[1732792897563,0.00013333,94999.0,94998.0,0.01942432]
[1732792897955,0.1,95000.0,94999.0,0.052613]
[1732792898155,0.1,95000.0,94999.0,0.07103732]
[1732792898466,0.1,95000.0,94999.0,0.07103718]
[1732792899062,0.1,95000.0,94999.0,0.43183718]
[1732792900967,0.1,95000.0,94999.0,0.43283718]
[1732792901267,0.09889169,95000.0,94999.0,0.43283718]
[1732792901766,0.09889169,95000.0,94999.0,0.43883718]
[1732792902067,0.09889169,95000.0,94999.0,0.75263718]
[1732792902268,0.00012064,95006.0,95005.0,0.05261]
[1732792902459,0.00012064,95006.0,95005.0,0.07103418]
[1732792904068,0.00012064,95006.0,95005.0,0.07203418]
[1732792904566,0.00012064,95006.0,95005.0,0.07403418]
[1732792905565,0.00012064,95006.0,95005.0,0.06416408]
[1732792907867,0.052606,95013.0,95005.0,0.01155408]
[1732792908071,0.052606,95013.0,95012.0,0.413406]
[1732792908973,0.052606,95013.0,95005.0,0.003]
[1732792908974,0.55953919,95013.0,95005.0,0.003]
[1732792909170,0.052609,95006.0,95005.0,0.001]
[1732792909367,0.24477919,95013.0,95010.0,0.052607]
[1732792909368,0.052606,95012.0,95010.0,0.052607]
[1732792909567,0.052606,95012.0,95011.0,0.3608]
[1732792911567,0.052606,95012.0,95001.0,0.3608]
[1732792911568,0.052612,95002.0,95001.0,0.3608]
[1732792912671,0.052612,95002.0,95001.0,0.3628]
[1732792914176,0.052612,95002.0,95001.0,0.413412]
[1732792914680,0.052612,95002.0,95001.0,0.415412]
[1732792914875,0.19108,95004.0,95001.0,0.3628]
[1732792915078,0.052603,95017.0,95012.0,0.052606]
[1732792915281,0.19112,95018.0,95012.0,0.052606]
[1732792915474,0.052605,95014.0,95012.0,0.052606]
[1732792915873,0.19112,95018.0,95012.0,0.06329205]
[1732792915874,0.052604,95015.0,95012.0,0.06329205]
[1732792916075,0.19112,95018.0,95012.0,0.06329205]
[1732792916278,0.2851374,95018.0,95012.0,0.06329205]
[1732792917277,0.0940174,95017.0,95012.0,0.06329205]
[1732792917482,0.00109319,95013.0,95012.0,0.06329205]
[1732792918574,0.05369819,95013.0,95012.0,0.06329205]
[1732792918781,0.05369819,95013.0,95012.0,0.02776399]
[1732792918985,0.14771559,95013.0,95012.0,0.02776399]
[1732792919279,0.05369819,95013.0,95012.0,0.02776399]
[1732792919586,0.05369819,95013.0,95001.0,0.3608]
[1732792919587,0.052612,95002.0,95001.0,0.3608]
[1732792919783,0.243692,95002.0,95001.0,0.3608]
[1732792920080,0.3691838,95002.0,95001.0,0.3608]
[1732792920284,0.243692,95002.0,95001.0,0.3608]
[1732792920579,0.19108,95002.0,95001.0,0.413412]
[1732792920788,0.052612,95002.0,95001.0,0.3608]
[1732792920983,0.052612,95002.0,95001.0,0.3628]
[1732792921181,0.052612,95002.0,95001.0,0.3668]
[1732792921376,0.052612,95002.0,95001.0,0.55586336]
[1732792921583,0.052612,95002.0,95001.0,0.3668]
[1732792921777,0.052612,95002.0,95001.0,0.419412]
[1732792922282,0.084209,95007.0,95006.0,0.052609]
[1732792923277,0.084209,95007.0,95002.0,0.25207589]
[1732792923278,0.052611,95003.0,95002.0,0.25207589]
[1732792923983,0.052612,95002.0,95001.0,0.3618]
[1732792924188,0.052612,95002.0,95001.0,0.3608]
[1732792925091,0.052613,94999.0,94998.0,0.1891334]
[1732792925289,0.1781038,95002.0,94995.0,0.1891334]
[1732792925493,0.052612,95002.0,95001.0,0.002]
[1732792925782,0.2502718,95002.0,95001.0,0.002]
[1732792925998,0.12556379,95002.0,95001.0,0.413412]
[1732792926186,0.00042401,95019.0,95001.0,0.413412]
[1732792926187,0.09418787,95005.0,95001.0,0.3628]
[1732792926381,0.18468,95015.0,95005.0,0.05261]
[1732792926382,0.09418787,95006.0,95005.0,0.05261]
[1732792926583,0.18468,95015.0,95006.0,0.052609]
[1732792926584,0.09418787,95007.0,95006.0,0.052609]
[1732792926883,0.09418824,95012.0,95011.0,0.052607]
[1732792927087,0.05269919,95013.0,95011.0,0.3608]
[1732792927288,9.319e-05,95013.0,95012.0,0.052606]
[1732792927588,0.09428636,95013.0,95012.0,0.24169447]
[1732792928184,9.319e-05,95013.0,95012.0,0.24169447]
[1732792928379,0.09428421,95013.0,95012.0,0.24169447]
[1732792928580,9.319e-05,95013.0,95012.0,0.052606]
[1732792929289,0.00109319,95013.0,95012.0,0.052606]
[1732792929884,0.00209319,95013.0,95012.0,0.052606]
[1732792930390,0.00209319,95013.0,95012.0,0.24169496]
[1732792930690,0.00209319,95013.0,95012.0,0.24169542]
[1732792930991,0.00209319,95013.0,95012.0,0.052606]
[1732792932296,0.00209319,95013.0,95012.0,0.24168353]
[1732792932884,0.00109319,95013.0,95012.0,0.24168353]
[1732792933390,0.00109319,95013.0,95012.0,0.052606]
[1732792933590,0.00109319,95013.0,95012.0,0.24168353]
[1732792934186,0.00109319,95013.0,95012.0,0.24167255]
[1732792934994,0.00109319,95013.0,95012.0,0.0728465]
[1732792935295,0.00109319,95013.0,95012.0,0.26518985]
[1732792935495,0.00109319,95013.0,95012.0,0.07618025]
[1732792935688,0.00109319,95013.0,95012.0,0.0763124]
[1732792935886,0.0015794,95022.0,95019.0,0.052602]
[1732792935887,0.15536107,95022.0,95019.0,0.052602]
[1732792936090,0.052588,95044.0,95026.0,0.052598]
[1732792936091,0.15536107,95033.0,95026.0,0.052598]
[1732792936384,0.15536107,95035.0,95033.0,0.052594]
[1732792936587,0.18751992,95040.0,95035.0,0.052593]
[1732792936588,0.15536107,95036.0,95035.0,0.052593]
[1732792936786,0.15536107,95041.0,95040.0,0.052591]
[1732792936986,0.18468,95048.0,95040.0,0.052591]
[1732792936987,0.15536107,95044.0,95042.0,0.052589]
[1732792937186,0.18468,95048.0,95045.0,0.052588]
[1732792937187,0.15536107,95046.0,95045.0,0.052588]
[1732792938187,0.05115071,95049.0,95045.0,0.052588]
[1732792938394,0.1568271,95047.0,95040.0,0.3618]
[1732792938904,0.1568271,95047.0,95046.0,0.052587]
[1732792939085,0.052587,95048.0,95046.0,0.052587]
[1732792939286,0.1568271,95047.0,95046.0,0.052587]
[1732792940301,8.349e-05,95050.0,95046.0,0.3608]
[1732792940490,8.349e-05,95050.0,95049.0,0.052586]
[1732792940794,0.1568271,95058.0,95056.0,0.052581]
[1732792941003,0.1568271,95058.0,95046.0,0.3618]
[1732792941004,0.1568271,95059.0,95057.0,0.3608]
[1732792941195,0.052579,95060.0,95058.0,0.052581]
[1732792941592,0.2094061,95060.0,95058.0,0.052581]
[1732792941784,8.506e-05,95059.0,95058.0,0.052581]
[1732792943698,8.506e-05,95059.0,95058.0,0.053581]
[1732792943897,8.506e-05,95059.0,95058.0,0.001]
[1732792944303,0.00708506,95059.0,95058.0,0.002]
[1732792944999,0.16391216,95059.0,95058.0,0.002]
[1732792945194,0.00708506,95059.0,95058.0,0.002]
[1732792945890,0.01954528,95059.0,95058.0,0.002]
[1732792946292,0.00708506,95059.0,95058.0,0.002]
[1732792948296,0.00708506,95059.0,95057.0,0.413381]
[1732792949103,0.09381443,95058.0,95057.0,0.413381]
[1732792949309,0.09380999,95058.0,95057.0,0.413381]
[1732792949494,0.09380999,95058.0,95057.0,0.414381]
[1732792949694,0.09380999,95058.0,95057.0,0.415381]
[1732792950309,0.10180999,95058.0,95057.0,0.3628]
[1732792950609,0.008,95058.0,95057.0,0.002]
[1732792950798,0.008,95058.0,95036.0,0.3608]
[1732792950799,0.052592,95038.0,95036.0,0.3608]
[1732792950997,0.052592,95038.0,95026.0,0.3608]
[1732792951208,0.052592,95038.0,95017.0,0.3608]
[1732792951209,0.052598,95027.0,95017.0,0.3608]
[1732792951505,0.09380137,95023.0,95018.0,0.00526288]
[1732792951705,0.09380137,95023.0,95006.0,0.36237855]
[1732792951706,0.09380137,95023.0,95014.0,0.052605]
[1732792951910,0.09380137,95023.0,95006.0,0.36237855]
[1732792952205,0.0326,95026.0,95015.0,0.052604]
[1732792952206,0.052604,95016.0,95015.0,0.052604]
[1732792952906,0.052605,95013.0,95006.0,0.36237855]
[1732792953109,0.052605,95013.0,95008.0,0.052608]
[1732792953502,0.052605,95013.0,95009.0,0.052608]
[1732792953702,0.052605,95013.0,95006.0,0.36237855]
[1732792954005,0.59909513,95013.0,94999.0,0.005]
[1732792954205,0.59909513,95013.0,94982.0,0.3608]
[1732792954206,0.3608,95000.0,94982.0,0.3608]
[1732792954405,0.052622,94983.0,94982.0,0.3608]
[1732792954610,0.09380344,94986.0,94985.0,0.052621]
[1732792954999,0.17956,94994.0,94985.0,0.05274386]
[1732792955308,0.38853749,94994.0,94989.0,0.052619]
[1732792955512,0.052617,94992.0,94990.0,0.413418]
[1732792956904,0.053617,94992.0,94990.0,0.413418]
[1732792957107,0.053617,94992.0,94990.0,0.3608]
[1732792958013,0.001,94992.0,94990.0,0.413418]
[1732792958216,0.09372621,94991.0,94990.0,0.413418]
[1732792958405,0.09472621,94992.0,94990.0,0.413418]
[1732792958606,0.001,94992.0,94991.0,0.3472]
[1732792959112,0.001,94992.0,94991.0,0.35049045]
[1732792959514,0.00012039,94997.0,94991.0,0.35049045]
[1732792959708,0.00012039,94997.0,94992.0,0.00329045]
[1732792959909,0.00012039,94997.0,94991.0,0.0314]
[1732792959910,0.00012039,94997.0,94993.0,0.00329045]
[1732792960206,0.00012039,94997.0,94994.0,0.00329045]
[1732792960402,0.00012039,94997.0,94991.0,0.0374]
[1732792960403,0.00012039,94997.0,94996.0,0.052615]
[1732792960610,0.15636149,95026.0,94996.0,0.052615]
[1732792960611,0.232204,95015.0,94997.0,0.052614]
[1732792960810,0.232204,95015.0,94993.0,0.3608]
[1732792960811,0.232204,95015.0,95013.0,0.052605]
[1732792961112,0.052607,95010.0,95009.0,0.3608]
[1732792961512,0.1796,95015.0,95001.0,0.3608]
[1732792961714,0.00010204,95013.0,95001.0,0.3608]
[1732792961917,0.052607,95010.0,95007.0,0.052608]
[1732792962321,0.054607,95010.0,95007.0,0.052608]
[1732792962621,0.052608,95009.0,95007.0,0.052608]
[1732792963522,0.004,95010.0,95001.0,0.3608]
[1732792963705,0.004,95010.0,95009.0,0.413408]
[1732792963706,0.002,95010.0,95009.0,0.413408]
[1732792963906,0.002,95010.0,95009.0,0.3608]
[1732792963907,0.054607,95010.0,95009.0,0.3608]
[1732792964320,0.052608,95009.0,94993.0,0.00157899]
[1732792964622,0.052616,94994.0,94993.0,0.00157899]
[1732792966020,0.052616,94994.0,94993.0,0.00357899]
[1732792966409,0.052616,94994.0,94993.0,0.00657899]
[1732792966817,0.052616,94994.0,94993.0,0.00457899]
[1732792967115,0.052616,94994.0,94993.0,0.00157899]
[1732792968319,0.14619423,94994.0,94993.0,0.00157899]
[1732792968819,0.14819423,94994.0,94993.0,0.00157899]
[1732792969027,0.09757823,94994.0,94991.0,0.3608]
[1732792969320,0.052619,94989.0,94988.0,0.052619]
[1732792969508,0.09757823,94994.0,94985.0,0.36092286]
[1732792969509,0.004,94994.0,94985.0,0.36092286]
[1732792969710,0.056616,94994.0,94985.0,0.36092286]
[1732792969917,0.004,94994.0,94993.0,0.413417]
[1732792970217,0.002,94994.0,94993.0,0.413417]
[1732792970412,0.001,94994.0,94993.0,0.413417]
[1732792971912,0.002,94994.0,94993.0,0.413417]
[1732792972711,0.002,94994.0,94993.0,0.3608]
[1732792972912,0.002,94994.0,94993.0,0.415417]
[1732792973211,0.052614,94998.0,94993.0,0.3628]
[1732792973416,0.052614,94998.0,94997.0,0.052614]
[1732792973713,0.052613,95000.0,94999.0,0.052613]
[1732792974319,0.052611,95003.0,94994.0,0.0326]
[1732792974526,0.1796,95005.0,94994.0,0.0326]
[1732792974821,0.052612,95002.0,95001.0,0.052611]
[1732792977319,0.14619023,95002.0,95001.0,0.052611]
[1732792977627,0.052612,95002.0,95001.0,0.052611]
[1732792977924,0.1796,95009.0,94995.0,0.0327]
[1732792977925,0.09357823,95003.0,95002.0,0.052612]
[1732792978127,0.052609,95008.0,95002.0,0.3608]
[1732792978329,0.052609,95008.0,95007.0,0.052609]
[1732792980427,0.054609,95008.0,95007.0,0.052609]
[1732792980724,0.003,95008.0,95002.0,0.3608]
[1732792980926,0.052611,95003.0,95002.0,0.413411]
[1732792983232,0.05270704,95013.0,95012.0,0.37234747]
[1732792983425,0.00010204,95013.0,95012.0,0.3608]
[1732792983924,0.00210204,95013.0,95012.0,0.37238163]
[1732792984126,0.00157923,95019.0,95012.0,0.37238163]
[1732792984127,0.00157923,95019.0,95013.0,0.052605]
[1732792984329,0.00157923,95019.0,95014.0,0.3608]
[1732792984519,0.00157923,95019.0,95018.0,0.052603]
[1732792986123,0.00557923,95019.0,95018.0,0.052603]
[1732792986530,0.00557923,95019.0,95018.0,0.053603]
[1732792988128,0.05818123,95019.0,95018.0,0.06503177]
[1732792988331,0.05818123,95019.0,95018.0,0.001]
[1732792990626,0.07122947,95019.0,95018.0,0.001]
[1732792990827,0.05818123,95019.0,95018.0,0.001]
[1732792991036,0.00557923,95019.0,95018.0,0.053603]
[1732792991930,0.36637923,95019.0,95018.0,0.001]
[1732792992120,0.052608,95009.0,95008.0,0.3608]
[1732792992325,0.225288,95009.0,95008.0,0.3608]
[1732792993331,0.226288,95009.0,95008.0,0.3608]
[1732792995126,0.226328,95009.0,95008.0,0.3608]
[1732792995930,0.542088,95009.0,94990.0,0.54985044]
[1732792996232,0.052619,94988.0,94987.0,0.052619]
[1732792996620,0.12555509,94992.0,94987.0,0.3608]
[1732792996824,0.12555509,94992.0,94991.0,0.052618]
[1732792997027,0.12555509,94992.0,94987.0,0.3608]
[1732792997028,0.12555509,94994.0,94993.0,0.052617]
[1732792997230,0.12555509,94994.0,94993.0,0.052616]
[1732792997433,0.29827509,94995.0,94994.0,0.052616]
[1732792998133,0.17272,94995.0,94994.0,0.052616]
[1732792998938,0.17272,94995.0,94994.0,0.054616]
[1732792999834,0.17272,94995.0,94994.0,0.059616]
[1732793000229,0.225335,94995.0,94994.0,0.059616]
[1732793001828,0.225335,94995.0,94994.0,0.07121786]
[1732793002232,0.35089009,94995.0,94994.0,0.07121786]
[1732793002534,0.225335,94995.0,94994.0,0.07121786]
[1732793002736,0.225335,94995.0,94994.0,0.01860186]
[1732793002932,0.225335,94995.0,94994.0,0.007]
[1732793004439,0.225335,94995.0,94994.0,0.005]
[1732793004635,0.225335,94995.0,94994.0,0.006]
[1732793005141,0.225335,94995.0,94994.0,0.01776657]
[1732793005928,0.225335,94995.0,94994.0,0.003]
[1732793006338,0.17272,94995.0,94994.0,0.055616]
[1732793006745,0.18834867,94997.0,94996.0,0.052615]
[1732793007040,0.18834867,94997.0,94996.0,0.42530936]
[1732793007428,0.17272,94998.0,94997.0,0.052614]
[1732793007639,0.052614,94999.0,94998.0,0.052614]
[1732793007640,0.225334,94999.0,94998.0,0.052614]
[1732793007837,0.225334,94999.0,94998.0,0.06450836]
[1732793009940,0.225334,94999.0,94998.0,0.06550836]
[1732793012249,0.225334,94999.0,94998.0,0.01289436]
[1732793012747,0.225334,94999.0,94998.0,0.001]
[1732793014046,0.225334,94999.0,94985.0,0.00012286]
[1732793014047,0.05262,94986.0,94985.0,0.00012286]
[1732793014239,0.37640988,94986.0,94985.0,0.00012286]
[1732793014442,0.2195,94986.0,94985.0,0.00012286]
[1732793015041,0.24090986,94991.0,94990.0,0.052618]
[1732793015353,0.16688,94991.0,94990.0,0.413418]
[1732793015647,0.16688,94991.0,94990.0,0.42543462]
[1732793016041,0.16688,94991.0,94990.0,0.413418]
[1732793016750,0.16688,94991.0,94990.0,0.417418]
[1732793017251,0.052617,94992.0,94991.0,0.052616]
[1732793017455,0.219497,94992.0,94991.0,0.052616]
[1732793018541,0.15690712,94994.0,94993.0,0.052617]
[1732793018748,0.15690712,94997.0,94996.0,0.052615]
[1732793019154,0.219494,94998.0,94997.0,0.052614]
[1732793019463,0.219534,94998.0,94997.0,0.052614]
[1732793020153,0.37644112,94998.0,94997.0,0.052614]
[1732793020547,0.37644112,94998.0,94997.0,0.053614]
[1732793021256,0.219534,94998.0,94997.0,0.053614]
[1732793022154,0.219534,94998.0,94997.0,0.06567883]
[1732793022851,0.052614,94998.0,94997.0,0.01306483]
[1732793023051,0.219534,94998.0,94997.0,0.001]
[1732793023350,0.40782586,94998.0,94997.0,0.001]
[1732793023562,0.251234,94998.0,94997.0,0.001]
[1732793025449,0.219534,94998.0,94997.0,0.053614]